bitfinex/quotes_ETHUSD_20220117
["timestamp","ask_amount","ask_price","bid_price","bid_amount"]
[1642392674636,0.6,3265.3,3264.5,0.01023162]
[1642392674831,0.3,3265.3,3264.5,0.01023162]
[1642392675034,9.15841481,3267.3,3266.0,476.80558987]
[1642392675231,1.56886745,3266.2,3266.0,476.80558987]
[1642392675432,1.68326745,3266.2,3266.0,476.80729514]
[1642392675634,1.56886745,3266.2,3266.0,476.80729514]
[1642392675934,19.66486745,3266.2,3266.0,476.80729514]
[1642392676132,3.01526258,3266.1,3266.0,476.80729514]
[1642392676333,22.3274087,3266.1,3266.0,476.80729514]
[1642392676535,20.35441036,3266.1,3266.0,476.80729514]
[1642392676733,20.38620798,3266.1,3266.0,471.21318617]
[1642392676932,20.46266588,3266.1,3266.0,471.21318617]
[1642392677334,2.20626594,3266.1,3266.0,471.21318617]
[1642392677538,1.40860402,3266.1,3266.0,471.21318617]
[1642392677934,1.77314612,3266.1,3266.0,471.21318617]
[1642392678377,1.77314612,3266.1,3266.0,467.01744238]
[1642392680188,0.441,3266.1,3266.0,467.01744238]
[1642392681284,1.89588958,3266.1,3266.0,467.01744238]
[1642392682136,0.441,3266.1,3266.0,467.01744238]
[1642392682435,0.03872323,3266.6,3266.1,4.65]
[1642392682436,0.44816765,3266.6,3266.1,4.65]
[1642392682635,2.1133685,3267.3,3266.6,0.02996219]
[1642392683033,2.57522128,3267.3,3266.6,0.02996219]
[1642392683436,0.46185278,3267.3,3266.5,0.01202549]
[1642392683637,0.46185278,3267.3,3266.9,0.97682699]
[1642392684737,1.53475201,3267.2,3266.9,0.97682699]
[1642392685139,0.00454739,3267.1,3266.9,0.97682699]
[1642392685638,0.00397897,3267.0,3266.9,0.97682699]
[1642392688186,0.00397897,3267.0,3266.5,0.01202549]
[1642392688380,0.00397897,3267.0,3266.1,7.1804]
[1642392688681,0.00341054,3266.9,3266.1,7.1804]
[1642392689078,0.00284212,3266.8,3266.1,7.1804]
[1642392689281,0.00284212,3266.8,3266.4,1.03820652]
[1642392689480,0.0022737,3266.7,3266.4,1.03820652]
[1642392689927,0.00170527,3266.6,3266.4,1.03820652]
[1642392690427,0.00113685,3266.5,3266.4,1.03820652]
[1642392694980,0.00113685,3266.5,3266.1,7.1804]
[1642392695579,0.00113685,3266.5,3266.1,6.0049]
[1642392696280,0.44213685,3266.5,3266.1,6.0049]
[1642392696480,1.52939552,3266.5,3266.1,6.0049]
[1642392696679,2.71677929,3266.4,3266.1,6.0049]
[1642392696880,0.441,3266.3,3266.1,6.0049]
[1642392700982,0.441,3266.3,3266.2,0.01946117]
[1642392701278,0.00113685,3266.5,3266.2,0.90304105]
[1642392701477,0.441,3266.4,3266.2,0.90304105]
[1642392702178,0.00113685,3266.5,3266.2,0.90304105]
[1642392702378,0.441,3266.4,3266.3,0.00691712]
[1642392702577,0.441,3266.4,3266.2,0.90304105]
[1642392702779,0.00113685,3266.5,3266.2,0.90304105]
[1642392703381,1.06067848,3267.0,3266.2,0.90304105]
[1642392703585,1.06067848,3267.0,3266.3,0.00113685]
[1642392703782,0.00170527,3266.8,3266.5,0.01143164]
[1642392704183,0.00113685,3266.7,3266.5,0.01143164]
[1642392704645,0.00341054,3267.1,3266.3,0.00113685]
[1642392704931,0.26399601,3267.2,3267.0,0.89129645]
[1642392705134,0.26399601,3267.2,3266.3,0.00113685]
[1642392705333,0.00341054,3267.1,3266.3,0.00113685]
[1642392705733,0.00284212,3267.0,3266.3,0.00113685]
[1642392706137,2.9706992,3267.2,3266.5,0.99637403]
[1642392706138,0.00227369,3266.9,3266.5,0.99637403]
[1642392706633,2.9706992,3267.2,3266.5,0.99637403]
[1642392706634,0.00170527,3266.8,3266.5,0.99637403]
[1642392707034,0.00113685,3266.7,3266.5,0.99637403]
[1642392707235,0.00113685,3266.7,3266.3,0.00113685]
[1642392707435,0.00324713,3266.6,3266.3,0.00113685]
[1642392707636,0.00113685,3266.7,3266.2,0.00170527]
[1642392707835,0.93070328,3266.4,3266.2,0.00170527]
[1642392708239,2.61705149,3266.3,3266.2,0.00170527]
[1642392711887,3.05805149,3266.3,3266.2,0.00170527]
[1642392712133,3.04138335,3266.3,3266.2,0.00170527]
[1642392712328,0.441,3266.3,3266.2,0.00170527]
[1642392712527,3.07382283,3266.3,3266.2,0.00170527]
[1642392712931,0.441,3266.3,3266.2,0.00170527]
[1642392713330,3.03893261,3266.3,3266.2,0.00170527]
[1642392713529,0.441,3266.3,3266.2,0.00170527]
[1642392713832,3.01719621,3266.3,3266.2,0.00170527]
[1642392715231,0.441,3266.3,3266.2,0.00170527]
[1642392718179,0.741,3266.3,3266.2,0.00170527]
[1642392718579,1.3,3266.3,3266.2,0.00170527]
[1642392718779,0.3,3266.3,3266.2,0.00170527]
[1642392718983,1.0,3266.3,3266.2,0.00170527]
[1642392719180,0.93070328,3266.4,3266.2,0.00170527]
[1642392719388,4.23136962,3267.1,3266.3,0.01965077]
[1642392719672,4.23136962,3267.1,3266.1,6.0049]
[1642392719673,0.00170527,3267.0,3266.4,0.00170527]
[1642392720059,0.00113684,3266.9,3266.2,0.00284212]
[1642392722061,0.00113684,3266.9,3266.5,0.87430011]
[1642392726084,0.00113684,3266.9,3266.2,0.00284212]
[1642392726987,0.00113684,3266.9,3266.2,0.76805212]
[1642392727230,0.00113684,3266.9,3266.3,0.00518498]
[1642392727432,0.00113684,3266.9,3266.3,1.0890208]
[1642392727633,0.00113684,3266.9,3266.4,0.00170527]
[1642392727836,0.00113684,3266.9,3266.4,0.76688527]
[1642392728233,0.00113684,3266.9,3266.5,0.00113685]
[1642392728732,0.00113684,3266.9,3266.6,0.03132502]
[1642392729133,0.00113684,3266.9,3266.6,2.76486472]
[1642392729334,0.62454026,3267.6,3266.8,0.03308254]
[1642392729537,4.026e-05,3267.6,3266.9,0.00506381]
[1642392729730,4.026e-05,3267.6,3266.8,1.5300381]
[1642392729731,0.0034508,3267.5,3266.8,1.5300381]
[1642392729932,0.0034508,3267.5,3267.4,2.36232159]
[1642392730132,0.0034508,3267.5,3267.4,1.07648092]
[1642392730133,4.026e-05,3267.5,3267.4,1.07648092]
[1642392730977,2.1133685,3267.9,3267.4,1.07648092]
[1642392731182,1.1828685,3267.9,3267.4,1.07648092]
[1642392731377,0.00511581,3267.8,3267.4,1.07648092]
[1642392731579,0.00511581,3267.8,3267.5,0.01324127]
[1642392731792,0.00454739,3267.7,3267.5,0.01324127]
[1642392732081,1.1828685,3268.5,3267.4,3.74912832]
[1642392732082,0.00397897,3267.6,3267.4,3.74912832]
[1642392732478,0.00341054,3267.5,3267.4,3.74912832]
[1642392732679,0.00341054,3267.5,3267.4,2.97188933]
[1642392733780,0.00341054,3267.5,3267.4,1.90773]
[1642392733979,0.00341054,3267.5,3267.4,1.1428]
[1642392735227,0.00341054,3267.5,3267.4,2.2334165]
[1642392736227,0.00341054,3267.5,3267.4,1.1428]
[1642392741480,2.02490221,3268.7,3267.7,1.52976]
[1642392741780,0.00625266,3268.6,3267.8,5.59]
[1642392742231,0.00568424,3268.5,3267.8,5.59]
[1642392742628,3.7941,3269.1,3267.8,5.59]
[1642392742629,0.00511582,3268.4,3267.8,6.35488]
[1642392742828,0.00511582,3268.4,3267.8,7.60328]
[1642392743031,0.00454739,3268.3,3267.8,7.60328]
[1642392743429,0.00397897,3268.2,3267.8,7.60328]
[1642392743929,0.00341055,3268.1,3267.8,7.60328]
[1642392744330,0.00284212,3268.0,3267.8,6.8384]
[1642392744730,0.0022737,3267.9,3267.8,6.8384]
[1642392755289,0.45141221,3268.7,3267.8,6.8384]
[1642392755290,0.35368591,3268.7,3267.8,6.8384]
[1642392755492,0.35368591,3268.7,3268.1,0.88067925]
[1642392755688,0.00397896,3268.6,3268.1,0.88067925]
[1642392755890,0.00397896,3268.6,3267.8,6.8384]
[1642392756089,0.00341054,3268.5,3267.8,6.8384]
[1642392756489,0.00284212,3268.4,3267.8,6.8384]
[1642392756890,1.07017151,3268.9,3267.8,6.8384]
[1642392756891,1.0224452,3268.9,3267.8,6.8384]
[1642392757141,1.0224452,3268.9,3268.0,0.01166372]
[1642392757339,0.00284212,3268.8,3267.9,1.17570904]
[1642392757540,0.00284212,3268.8,3268.1,0.00113684]
[1642392757741,0.0022737,3268.7,3268.0,0.00170527]
[1642392758144,0.00170527,3268.6,3268.0,0.00170527]
[1642392758343,0.00170527,3268.6,3268.1,0.80232805]
[1642392758543,7.60490221,3269.3,3268.3,1.57599401]
[1642392758741,7.60490221,3269.3,3268.3,1.52954]
[1642392758943,0.00113685,3268.8,3268.4,3.15208324]
[1642392759142,0.00113685,3268.8,3268.4,0.44213684]
[1642392759541,0.00113685,3268.8,3268.6,0.83766871]
[1642392759742,0.00113685,3268.8,3268.7,0.441]
[1642392762184,0.00113685,3268.8,3268.7,1.53830787]
[1642392763183,0.00113685,3268.8,3268.7,0.441]
[1642392765127,0.00113685,3268.8,3268.7,1.46196919]
[1642392765531,0.00113685,3268.8,3268.7,2.64866919]
[1642392770381,0.00113685,3268.8,3268.7,1.6277]
[1642392770782,0.00113685,3268.8,3268.7,1.1867]
[1642392771184,0.00113685,3268.8,3268.6,5.4028]
[1642392771781,0.00113685,3268.8,3268.4,0.00113684]
[1642392772228,0.00113685,3268.8,3268.3,0.00170527]
[1642392774830,0.00113685,3268.8,3268.6,1.07126343]
[1642392775899,0.28954195,3268.8,3268.6,1.07126343]
[1642392776695,0.28954195,3268.8,3268.6,1.51226343]
[1642392778495,0.00113685,3268.8,3268.6,1.51226343]
[1642392778694,0.00113685,3268.8,3268.6,6.84436343]
[1642392779098,0.00113685,3268.8,3268.6,8.01716343]
[1642392779728,0.00113685,3268.8,3268.7,0.76469]
[1642392780129,0.00113685,3268.8,3268.7,1.20569]
[1642392780530,0.2884051,3269.3,3268.7,1.97033]
[1642392780727,0.2884051,3269.3,3268.8,0.02173537]
[1642392780928,0.00227369,3269.2,3268.9,0.441]
[1642392781329,0.00170527,3269.1,3268.9,0.441]
[1642392781533,0.14011037,3269.2,3268.9,0.441]
[1642392782329,0.09161051,3269.9,3268.9,0.441]
[1642392782734,0.00397896,3269.8,3268.9,0.441]
[1642392783129,0.00341054,3269.7,3268.9,0.441]
[1642392783407,0.00284212,3269.6,3268.9,0.441]
[1642392783808,0.05225433,3269.5,3268.9,0.441]
[1642392784010,0.05225433,3269.5,3268.6,6.5049]
[1642392784011,0.01244217,3269.3,3268.6,6.5049]
[1642392784412,0.01244217,3269.3,3268.7,0.00227369]
[1642392784810,1.2833421,3269.2,3268.7,0.00227369]
[1642392785010,1.5833421,3269.2,3268.7,0.00227369]
[1642392787936,4.28693989,3269.2,3268.7,0.00227369]
[1642392788136,1.0,3269.1,3268.7,0.00227369]
[1642392788637,1.5833421,3269.2,3268.7,0.00227369]
[1642392789036,0.3,3269.2,3268.7,0.00227369]
[1642392789237,0.01244217,3269.3,3268.7,0.00227369]
[1642392789439,1.00170527,3269.4,3268.7,0.00227369]
[1642392789636,0.30170527,3269.4,3268.7,0.00227369]
[1642392789837,0.00113685,3269.3,3268.7,0.00227369]
[1642392790037,0.00113685,3269.3,3268.8,0.95365852]
[1642392790438,0.00113685,3269.3,3268.9,0.00113685]
[1642392790892,0.00113685,3269.3,3268.7,0.00227369]
[1642392791393,0.00113685,3269.3,3268.8,0.00620312]
[1642392791595,0.00113685,3269.3,3268.7,0.00227369]
[1642392791795,0.00113685,3269.3,3268.9,0.00113685]
[1642392791997,0.00113685,3269.3,3268.7,0.00227369]
[1642392792396,1.3029624,3269.1,3268.7,0.00227369]
[1642392793697,1.3029624,3269.1,3268.8,0.00328682]
[1642392793898,0.01330227,3269.3,3268.8,0.00328682]
[1642392794197,0.00113685,3269.3,3269.0,0.00856488]
[1642392794855,0.00113685,3269.3,3268.9,0.00113685]
[1642392795252,0.00113685,3269.3,3268.7,0.00227369]
[1642392798153,0.00113685,3269.3,3268.9,1.00316627]
[1642392798605,0.00113685,3269.3,3269.0,0.00590004]
[1642392799007,0.00113685,3269.3,3268.9,1.44416627]
[1642392800304,0.00113685,3269.3,3269.0,0.01585955]
[1642392800704,0.00113685,3269.3,3268.9,1.44416627]
[1642392802345,0.00113685,3269.3,3269.0,1.52918]
[1642392802545,0.00113685,3269.3,3269.1,0.45503017]
[1642392802742,0.00113685,3269.3,3269.1,0.441]
[1642392811439,0.00113685,3269.3,3269.0,1.1757]
[1642392811943,1.31665069,3269.2,3269.0,1.1757]
[1642392812140,2.69891388,3269.1,3268.7,0.00227369]
[1642392813143,1.31665069,3269.2,3268.7,0.00227369]
[1642392813388,1.31665069,3269.2,3268.6,5.28437369]
[1642392813589,0.00227369,3269.1,3268.6,5.28437369]
[1642392813791,0.22611127,3269.0,3268.6,5.28437369]
[1642392813989,0.22781654,3269.0,3268.6,5.28437369]
[1642392814190,0.00113684,3268.9,3268.6,5.28437369]
[1642392816792,0.00113684,3268.9,3268.7,0.01127731]
[1642392817445,0.00113684,3268.9,3268.6,6.33596504]
[1642392817746,0.00113684,3268.9,3268.6,6.04913369]
[1642392818351,0.00113684,3268.9,3268.7,0.00693341]
[1642392818545,0.00113684,3268.9,3268.6,6.04913369]
[1642392818743,0.00113684,3268.9,3268.7,0.00755916]
[1642392819143,0.00113684,3268.9,3268.6,7.03068627]
[1642392819947,0.00113684,3268.9,3268.7,0.45404078]
[1642392820146,0.00113684,3268.9,3268.7,1.5852]
[1642392821491,1.47568836,3268.9,3268.7,1.5852]
[1642392821689,1.47568836,3268.9,3268.7,0.441]
[1642392822290,1.47568836,3268.9,3268.6,5.28437369]
[1642392822692,2.72541003,3268.8,3268.6,5.28437369]
[1642392822892,1.0735576,3268.8,3268.6,5.28437369]
[1642392823090,2.0735576,3268.8,3268.6,5.28437369]
[1642392823690,1.0,3268.8,3268.6,5.28437369]
[1642392823891,1.22611127,3268.8,3268.6,5.28437369]
[1642392824490,0.22611127,3268.8,3268.6,5.28437369]
[1642392824756,1.22611127,3268.8,3268.6,5.28437369]
[1642392824954,0.22611127,3268.7,3268.6,5.28437369]
[1642392825960,0.22611127,3268.8,3268.6,5.28437369]
[1642392829608,0.00113684,3268.9,3268.6,5.28437369]
[1642392830610,0.22724811,3268.9,3268.6,5.28437369]
[1642392831911,0.22724811,3268.9,3268.7,0.04676398]
[1642392832545,4.811e-05,3268.9,3268.8,0.441]
[1642392832743,2.96586444,3269.2,3268.8,0.441]
[1642392832944,2.52026231,3269.9,3268.9,1.12919568]
[1642392833146,0.00113685,3269.1,3269.0,1.22030335]
[1642392833544,0.00113685,3269.1,3269.0,1.20563]
[1642392838197,1.42490221,3270.1,3269.0,1.20563]
[1642392838396,1.42490221,3270.1,3269.2,0.76451]
[1642392838596,0.00511581,3270.0,3269.4,0.76448]
[1642392838798,0.00511581,3270.0,3269.4,1.20548]
[1642392838999,0.00454739,3269.9,3269.4,1.20548]
[1642392839398,0.00397896,3269.8,3269.4,1.20548]
[1642392839843,0.00341054,3269.7,3269.4,1.20548]
[1642392840249,1.42490221,3270.3,3269.4,6.68298]
[1642392840250,0.00284212,3269.6,3269.4,6.68298]
[1642392840645,0.00227369,3269.5,3269.4,6.68298]
[1642392845403,1.42490221,3270.7,3269.8,0.76438]
[1642392845595,1.42490221,3270.6,3269.9,1.20532]
[1642392845794,0.00511581,3270.4,3269.9,1.20532]
[1642392846194,0.00454739,3270.3,3269.9,1.20532]
[1642392846394,0.00454739,3270.3,3269.9,2.82322345]
[1642392846595,0.00397897,3270.2,3270.0,0.76775373]
[1642392846802,0.00397897,3270.2,3270.1,0.441]
[1642392846998,0.00341054,3270.1,3269.8,5.32592]
[1642392847271,0.122395,3270.8,3269.9,0.441]
[1642392847272,0.02580554,3270.8,3269.9,0.441]
[1642392847456,0.00682109,3270.7,3269.9,0.44213684]
[1642392847856,0.00284212,3270.6,3269.9,0.44213684]
[1642392848257,0.0022737,3270.5,3269.9,0.44213684]
[1642392848656,0.00170527,3270.4,3269.9,1.20646684]
[1642392849157,0.00113685,3270.3,3269.9,0.44213684]
[1642392849559,0.00341055,3270.7,3269.9,0.44213684]
[1642392849958,0.00284212,3270.6,3269.9,0.44213684]
[1642392850357,0.0022737,3270.5,3269.9,0.44213684]
[1642392850761,0.00170527,3270.4,3269.9,0.44213684]
[1642392851194,0.02580554,3270.8,3269.9,0.44213684]
[1642392851195,0.00113685,3270.3,3269.9,0.44213684]
[1642392851601,0.00341055,3270.7,3269.9,0.44213684]
[1642392852000,0.00284212,3270.6,3269.9,0.44213684]
[1642392852395,6.15807924,3271.0,3269.9,0.44213684]
[1642392852595,1.53032229,3271.1,3270.1,0.76439]
[1642392852795,0.00113685,3270.7,3270.2,0.441]
[1642392852995,0.00113685,3270.7,3270.2,0.44270527]
[1642392853195,0.00113685,3270.7,3270.3,0.00113685]
[1642392853402,0.00113685,3270.7,3270.3,0.44213685]
[1642392854194,0.00113685,3270.7,3270.4,0.017621]
[1642392854400,0.00113685,3270.7,3270.3,0.44213685]
[1642392854401,0.00113685,3270.7,3270.3,1.38612311]
[1642392854651,0.00113685,3270.7,3270.5,0.76429]
[1642392855449,0.00113685,3270.7,3270.3,1.38612311]
[1642392856451,0.00113685,3270.7,3270.3,2.15047311]
[1642392856849,0.00113685,3270.7,3270.3,1.20648685]
[1642392857354,0.00113685,3270.7,3270.3,0.44213685]
[1642392859409,0.00113685,3270.7,3270.3,0.45013685]
[1642392860010,0.00113685,3270.7,3270.4,0.00836663]
[1642392860605,0.00113685,3270.7,3270.3,0.45013685]
[1642392860806,0.00113685,3270.7,3270.4,0.0137386]
[1642392861206,0.00113685,3270.7,3270.3,1.21448685]
[1642392862008,0.00113685,3270.7,3270.4,0.01099698]
[1642392862646,0.00113685,3270.7,3270.3,1.21448685]
[1642392862647,0.00113685,3270.7,3270.3,1.04883685]
[1642392862942,0.00170527,3270.6,3270.3,1.04883685]
[1642392863344,0.00113685,3270.5,3270.3,1.04883685]
[1642392863549,0.00113685,3270.5,3270.3,0.28448685]
[1642392863849,0.00454739,3271.1,3270.3,0.28448685]
[1642392864246,0.00397897,3271.0,3270.3,0.28448685]
[1642392864448,0.13490223,3271.0,3270.3,0.28448685]
[1642392864745,0.00341054,3270.9,3270.4,0.008]
[1642392865153,0.00284212,3270.8,3270.4,0.008]
[1642392865548,0.08376538,3270.9,3270.4,0.008]
[1642392865991,0.08376538,3270.9,3270.5,0.00170527]
[1642392866395,0.00170527,3271.1,3270.5,0.00170527]
[1642392866796,0.00113685,3271.0,3270.5,0.00170527]
[1642392867591,1.0,3271.0,3270.5,0.00170527]
[1642392867799,1.0,3271.2,3270.5,0.00284212]
[1642392868193,1.00113684,3271.2,3270.5,0.00284212]
[1642392868393,0.00113684,3271.2,3270.5,0.00284212]
[1642392868594,0.00113684,3271.2,3270.6,0.02194388]
[1642392869093,0.00113684,3271.2,3270.8,0.00834337]
[1642392869496,0.00113684,3271.2,3270.7,0.00170527]
[1642392869942,0.00113684,3271.2,3270.8,0.01652234]
[1642392870142,0.00113684,3271.2,3270.7,0.01740085]
[1642392870543,0.00113684,3271.2,3270.8,0.00113685]
[1642392870943,0.00113684,3271.2,3270.9,0.02889369]
[1642392871348,0.00113684,3271.2,3270.7,1.12950527]
[1642392871743,0.00113684,3271.2,3270.8,0.00113685]
[1642392871944,0.00113684,3271.2,3270.9,0.01069047]
[1642392872344,0.00113684,3271.2,3270.8,0.00113685]
[1642392873147,0.00113684,3271.2,3270.9,0.0085203]
[1642392873400,0.00113684,3271.2,3270.8,0.44213685]
[1642392874598,0.00113684,3271.2,3270.9,0.76423]
[1642392874800,0.00113684,3271.2,3271.0,0.441]
[1642392880251,0.00113684,3271.2,3271.0,0.449]
[1642392885744,0.00113684,3271.2,3271.1,1.03056046]
[1642392885947,0.00113684,3271.2,3271.1,1.47156046]
[1642392886943,0.00113684,3271.2,3271.1,0.441]
[1642392890394,0.00113684,3271.2,3271.1,0.449]
[1642392890796,1.6806851,3271.8,3271.1,1.97721]
[1642392891199,0.00284212,3271.7,3271.1,1.97721]
[1642392891596,0.0022737,3271.6,3271.1,1.97721]
[1642392891798,1.6329588,3271.8,3271.1,1.97721]
[1642392891995,1.6329588,3271.8,3271.3,0.78105056]
[1642392892443,1.6329588,3271.8,3271.4,0.00113685]
[1642392892844,1.6329588,3271.8,3271.5,0.0113233]
[1642392893045,1.6329588,3271.8,3271.6,0.441]
[1642392893244,1.6329588,3271.8,3271.6,1.20505]
[1642392893444,1.6329588,3271.8,3271.6,2.31435]
[1642392894445,1.67700112,3272.5,3271.7,4.9]
[1642392894644,1.67700112,3272.5,3271.8,0.441]
[1642392894846,0.00454738,3272.4,3272.0,0.76386]
[1642392895045,0.00454738,3272.4,3272.1,0.441]
[1642392895244,0.00397896,3272.3,3272.1,0.441]
[1642392895647,6.18,3272.6,3272.1,0.441]
[1642392895648,0.00341054,3272.2,3272.1,0.441]
[1642392898706,0.00554969,3272.1,3271.6,1.1973]
[1642392898904,0.00341054,3272.2,3271.6,1.1973]
[1642392899109,0.00227369,3272.0,3271.6,1.1973]
[1642392899306,1.26652338,3271.9,3271.6,1.1973]
[1642392899506,1.26822865,3271.9,3271.6,1.1973]
[1642392899746,0.00113684,3271.8,3271.6,1.1973]
[1642392901171,0.00113684,3271.8,3271.6,1.96134]
[1642392901346,0.00113684,3271.8,3271.6,1.1973]
[1642392906092,6.13113684,3272.6,3271.6,1.1973]
[1642392906295,0.26451203,3272.7,3271.6,1.1973]
[1642392906296,7.39415274,3272.7,3271.6,1.1973]
[1642392906596,0.00397897,3272.5,3271.6,1.1973]
[1642392907151,1.19319433,3272.4,3271.6,1.2053]
[1642392907343,2.82627383,3272.3,3271.6,0.008]
[1642392907545,0.01562504,3272.3,3271.6,0.008]
[1642392907744,0.0022737,3272.2,3271.6,0.008]
[1642392908144,0.00170527,3272.1,3271.6,0.008]
[1642392908544,0.00113685,3272.0,3271.6,0.008]
[1642392908943,3.10190333,3272.5,3271.8,0.76396]
[1642392909347,0.00341054,3272.4,3272.2,0.22334692]
[1642392909544,0.00341054,3272.4,3272.2,0.44669384]
[1642392909745,0.00284212,3272.3,3272.2,0.44669384]
[1642392912396,2.92142765,3272.9,3272.2,0.44669384]
[1642392912797,0.00227369,3272.7,3272.2,0.44669384]
[1642392913204,2.92142765,3272.9,3272.2,0.44669384]
[1642392913205,0.00170527,3272.6,3272.2,0.44669384]
[1642392913598,10.38956669,3273.2,3272.3,0.00459355]
[1642392913599,0.00113685,3272.5,3272.3,0.00459355]
[1642392913999,0.00454739,3273.1,3272.3,0.00459355]
[1642392914200,0.00454739,3273.1,3272.2,0.44669384]
[1642392914401,0.00397896,3273.0,3271.9,3.124]
[1642392914654,0.00397896,3273.0,3272.6,0.22334692]
[1642392914844,9.26466448,3273.2,3272.7,0.00820924]
[1642392914845,0.00341054,3272.9,3272.7,0.00820924]
[1642392915045,0.00341054,3272.9,3272.6,0.22334692]
[1642392915244,0.00284212,3272.8,3272.6,0.22334692]
[1642392915645,0.00397896,3273.0,3272.6,0.22334692]
[1642392916046,0.00341054,3272.9,3272.6,0.22334692]
[1642392916446,0.00284212,3272.8,3272.6,0.22334692]
[1642392916849,0.00397896,3273.0,3272.6,0.22334692]
[1642392917252,0.00341054,3272.9,3272.6,0.22334692]
[1642392917649,0.00284212,3272.8,3272.6,0.22334692]
[1642392917847,0.00616848,3272.8,3272.6,0.22334692]
[1642392918048,0.00284212,3272.8,3272.6,0.22334692]
[1642392918248,17.98284212,3272.8,3272.6,0.22334692]
[1642392918493,18.28284212,3272.8,3272.6,0.22334692]
[1642392918693,1.0,3272.7,3272.6,0.22334692]
[1642392919095,19.70490221,3272.7,3272.6,0.22334692]
[1642392919594,20.70490221,3272.7,3272.6,0.22334692]
[1642392919799,0.01661979,3272.3,3272.2,0.008]
[1642392920197,0.01661979,3272.3,3272.0,0.00170527]
[1642392920497,1.42671012,3272.2,3272.0,0.00170527]
[1642392920695,1.42671012,3272.2,3271.9,0.00227369]
[1642392920996,1.72671012,3272.2,3271.9,0.00227369]
[1642392921394,0.3,3272.1,3271.9,0.00227369]
[1642392921597,0.15445058,3272.1,3271.9,0.00227369]
[1642392921796,0.15445058,3272.1,3271.6,0.00397896]
[1642392922645,0.01661979,3272.3,3271.6,0.00397896]
[1642392924248,0.01661979,3272.3,3271.7,0.01459044]
[1642392924648,0.01661979,3272.3,3271.8,0.00284212]
[1642392924951,0.01661979,3272.3,3272.0,0.22334692]
[1642392925348,0.01661979,3272.3,3272.1,0.00113685]
[1642392926398,6.14832506,3272.8,3272.1,0.00113685]
[1642392926599,6.74463834,3272.9,3272.1,0.00284212]
[1642392926800,7.04463834,3272.9,3272.1,0.00284212]
[1642392926999,1.00113685,3272.8,3272.1,0.00284212]
[1642392927604,1.44663952,3272.4,3272.1,0.00284212]
[1642392927998,2.04663952,3272.4,3272.1,0.00284212]
[1642392928600,3.04663952,3272.4,3272.1,0.00284212]
[1642392928799,2.04663952,3272.4,3272.1,0.00284212]
[1642392928999,1.3,3272.3,3272.1,0.00284212]
[1642392929200,2.04663952,3272.4,3272.1,0.00284212]
[1642392930047,3.04663952,3272.4,3272.1,0.00284212]
[1642392930248,3.04663952,3272.4,3272.2,0.22334692]
[1642392930646,1.0,3272.3,3272.2,0.22334692]
[1642392931049,0.3,3272.4,3272.2,0.22562061]
[1642392931247,1.0,3272.6,3272.2,0.22562061]
[1642392931248,1.3,3272.6,3272.2,0.22562061]
[1642392931447,0.6,3272.6,3272.3,0.00170527]
[1642392931648,1.3,3272.6,3272.3,0.00170527]
[1642392931849,0.6,3272.7,3272.3,0.00170527]
[1642392932248,1.26459084,3272.4,3272.3,0.00170527]
[1642392932651,1.86459084,3272.4,3272.3,0.00170527]
[1642392932856,0.6,3272.4,3272.3,0.00170527]
[1642392933154,0.3,3272.4,3272.3,0.00170527]
[1642392933396,1.0,3272.6,3272.4,0.05]
[1642392933597,2.06183722,3272.7,3272.4,0.05]
[1642392933997,1.3040915,3272.6,3272.4,0.05]
[1642392934398,2.3040915,3272.6,3272.4,0.05]
[1642392934598,1.3040915,3272.6,3272.4,0.05]
[1642392935502,1.6,3272.7,3272.4,0.05]
[1642392935699,1.46297407,3272.8,3272.5,0.22334692]
[1642392935899,1.46297407,3272.8,3272.6,0.01315826]
[1642392936100,1.46297407,3272.8,3272.5,0.22334692]
[1642392936699,1.36040507,3272.7,3272.5,0.22334692]
[1642392937175,1.96040507,3272.7,3272.5,0.22334692]
[1642392938365,0.6,3272.7,3272.5,0.22334692]
[1642392938666,0.3,3272.7,3272.5,0.22334692]
[1642392938867,0.30113685,3272.8,3272.5,0.22334692]
[1642392938868,1.60113685,3272.8,3272.5,0.22334692]
[1642392939066,1.30113685,3272.8,3272.5,0.22334692]
[1642392939467,2.52326166,3272.8,3272.5,0.22334692]
[1642392939670,1.52326166,3272.8,3272.5,0.22334692]
[1642392939868,1.0,3272.7,3272.5,0.22334692]
[1642392940071,0.3,3272.7,3272.5,0.22334692]
[1642392940470,1.0,3272.7,3272.5,0.22334692]
[1642392940677,1.0,3272.7,3272.5,0.008]
[1642392940893,1.0,3272.7,3272.6,0.22334692]
[1642392941494,2.06297407,3272.8,3272.6,0.22334692]
[1642392942095,0.60113685,3272.8,3272.6,0.22334692]
[1642392942296,2.02719845,3272.8,3272.6,0.22334692]
[1642392942493,1.72719845,3272.8,3272.6,0.22334692]
[1642392944947,0.20916647,3272.7,3272.6,0.22334692]
[1642392945850,0.20916647,3272.7,3272.6,0.23134692]
[1642392946047,0.50916647,3272.7,3272.6,0.23134692]
[1642392948149,0.3,3272.7,3272.6,0.23134692]
[1642392948696,0.30113685,3272.8,3272.6,0.23134692]
[1642392948697,0.00113685,3272.8,3272.6,0.23134692]
[1642392949100,0.00113685,3272.8,3272.6,0.008]
[1642392949298,0.00113685,3272.8,3272.7,0.22334692]
[1642392956058,0.00113685,3272.8,3272.7,0.23134692]
[1642392957056,0.13746674,3273.5,3272.7,0.23134692]
[1642392957458,0.00454739,3273.4,3272.7,0.008]
[1642392957657,0.00454739,3273.4,3273.1,0.22334692]
[1642392957857,0.00397897,3273.3,3273.1,0.22334692]
[1642392958257,0.00341054,3273.2,3273.1,0.22334692]
[1642392959458,0.14087728,3273.2,3273.1,0.22334692]
[1642392961168,0.14087728,3273.2,3273.1,0.23134692]
[1642392963904,0.00341054,3273.2,3273.1,0.23134692]
[1642392981300,0.00341054,3273.2,3273.1,2.33134692]
[1642392981901,0.00341054,3273.2,3273.1,0.23134692]
[1642392982450,0.00341054,3273.2,3273.1,2.43134692]
[1642392982850,0.00341054,3273.2,3273.1,0.23134692]
[1642392983955,0.17687206,3273.8,3273.2,4.41355]
[1642392984152,0.17687206,3273.8,3273.3,1.20453]
[1642392984356,0.00284212,3273.7,3273.3,1.20453]
[1642392984552,0.00284212,3273.7,3273.6,0.22334692]
[1642392984751,0.17687206,3273.8,3273.6,1.15124427]
[1642392985900,2.85543954,3273.8,3273.6,0.22334692]
[1642392986103,0.17687206,3273.8,3273.6,0.22334692]
[1642392986300,1.0,3273.7,3273.6,0.22334692]
[1642392986501,1.3,3273.7,3273.6,0.22334692]
[1642392986701,0.3,3273.7,3273.6,0.22334692]
[1642392986906,1.6540162,3273.7,3273.6,0.22334692]
[1642392987101,19.3340162,3273.7,3273.6,0.22334692]